bitfinex/quotes_BTCUSD_20220306
["timestamp","ask_amount","ask_price","bid_price","bid_amount"]
[1646603271807,0.17050769,38970.0,38947.0,0.3838]
[1646603271808,0.05,38968.0,38954.0,0.004]
[1646603272006,0.3,38967.0,38954.0,0.004]
[1646603272211,0.464203,38967.0,38954.0,0.004]
[1646603272608,0.12843128,38966.0,38954.0,0.004]
[1646603272805,0.3,38965.0,38956.0,0.17561431]
[1646603273005,0.06421265,38962.0,38956.0,0.17561431]
[1646603273406,0.07346875,38962.0,38956.0,0.17561431]
[1646603273609,0.064217,38963.0,38956.0,0.17561431]
[1646603273810,0.01277,38967.0,38966.0,0.16127131]
[1646603274011,0.01030265,38972.0,38966.0,0.16127131]
[1646603274012,0.00175346,38972.0,38966.0,0.16127131]
[1646603274213,0.00175346,38972.0,38967.0,0.3]
[1646603274414,0.00175346,38972.0,38967.0,0.3513]
[1646603274609,0.00175346,38972.0,38967.0,0.4513]
[1646603275009,0.00175346,38972.0,38968.0,0.16853585]
[1646603275211,0.00175346,38972.0,38969.0,0.3513]
[1646603275466,0.00175346,38972.0,38970.0,0.128342]
[1646603275662,0.00175346,38972.0,38971.0,0.3513]
[1646603276061,0.00175346,38972.0,38971.0,0.4513]
[1646603277666,0.00175346,38972.0,38971.0,0.4463]
[1646603278864,0.00020356,38974.0,38971.0,0.4463]
[1646603279064,0.00175346,38976.0,38972.0,0.33283398]
[1646603279306,0.00175346,38976.0,38974.0,0.21008531]
[1646603279705,0.00175346,38976.0,38974.0,0.31008531]
[1646603280308,0.00175346,38976.0,38975.0,0.3]
[1646603280612,0.45910892,38980.0,38975.0,0.4513]
[1646603280814,0.45910892,38980.0,38977.0,0.064157]
[1646603281009,0.45910892,38980.0,38978.0,0.36418094]
[1646603281215,8.92e-06,38980.0,38979.0,0.58989057]
[1646603281412,8.92e-06,38980.0,38979.0,0.579604]
[1646603282814,8.92e-06,38980.0,38979.0,0.06975306]
[1646603283063,8.92e-06,38980.0,38979.0,0.08530706]
[1646603283262,0.20988936,38993.0,38979.0,0.08530706]
[1646603283461,0.20988936,38994.0,38986.0,0.19239516]
[1646603283664,0.20988936,38994.0,38992.0,0.17320136]
[1646603283862,0.20988936,38994.0,38984.0,0.128263]
[1646603283863,0.34640272,38989.0,38984.0,0.128263]
[1646603284061,0.34640272,38989.0,38985.0,0.23891532]
[1646603284261,0.34640272,38989.0,38985.0,0.33891532]
[1646603284661,0.34640272,38989.0,38986.0,0.16848978]
[1646603284861,0.34640272,38989.0,38987.0,0.0513]
[1646603285063,0.34640272,38989.0,38988.0,0.064136]
[1646603285268,0.34662092,38989.0,38988.0,0.17957076]
[1646603286263,0.34640272,38989.0,38988.0,0.17957076]
[1646603289006,0.34640272,38989.0,38988.0,0.18173972]
[1646603290957,0.34640272,38989.0,38988.0,0.19200272]
[1646603291361,0.34640272,38989.0,38988.0,0.18173972]
[1646603293863,0.34640272,38989.0,38988.0,0.18068681]
[1646603295105,0.39640272,38989.0,38988.0,0.18068681]
[1646603295311,0.39640272,38989.0,38988.0,0.00111605]
[1646603299058,0.39640272,38989.0,38987.0,0.00216896]
[1646603299257,0.46056672,38989.0,38987.0,0.00216896]
[1646603299457,0.3,38988.0,38987.0,0.00216896]
[1646603299657,0.3,38988.0,38977.0,0.064169]
[1646603300057,0.3,38988.0,38978.0,0.2159285]
[1646603300358,0.064169,38985.0,38978.0,0.2159285]
[1646603300955,0.00020321,38983.0,38978.0,0.2159285]
[1646603301905,0.064169,38985.0,38978.0,0.2159285]
[1646603302106,0.00020321,38982.0,38978.0,0.2800945]
[1646603302510,0.00020321,38982.0,38978.0,0.2159285]
[1646603302910,0.00020321,38982.0,38980.0,0.128305]
[1646603303111,0.34640272,38989.0,38980.0,0.41067184]
[1646603303317,0.34640272,38989.0,38986.0,0.15]
[1646603303510,0.1234,39002.0,38988.0,0.01401114]
[1646603303712,0.01265,39005.0,38989.0,0.0513]
[1646603303909,0.01265,39005.0,39002.0,0.21747877]
[1646603304109,0.30611192,38999.0,38998.0,0.128256]
[1646603304313,0.30611192,38999.0,38998.0,0.479556]
[1646603304809,0.30611192,38999.0,38998.0,0.579556]
[1646603305009,0.30611192,38999.0,38998.0,0.79182921]
[1646603305208,1.192e-05,38999.0,38998.0,0.96495489]
[1646603305458,1.192e-05,38999.0,38998.0,0.75268168]
[1646603305657,1.192e-05,38999.0,38998.0,0.79366949]
[1646603306059,1.192e-05,38999.0,38998.0,1.01805708]
[1646603306461,1.192e-05,38999.0,38998.0,1.17408889]
[1646603306863,1.192e-05,38999.0,38998.0,1.09969801]
[1646603307058,0.05,39008.0,38999.0,1.29231481]
[1646603307059,9.8e-06,39000.0,38999.0,1.29231481]
[1646603307259,9.8e-06,39000.0,38999.0,1.87765312]
[1646603307460,0.05,39008.0,38999.0,1.87765312]
[1646603307663,0.00078,39013.0,39007.0,0.15]
[1646603307870,0.00078,39013.0,39010.0,0.17748349]
[1646603308163,0.00078,39013.0,39011.0,0.0513]
[1646603308465,0.00078,39013.0,39012.0,0.18423702]
[1646603308661,0.00078,39013.0,39012.0,0.23553702]
[1646603310313,0.00078,39013.0,39012.0,0.0513]
[1646603312817,0.00078,39013.0,39009.0,0.18645403]
[1646603313069,0.00078,39013.0,39010.0,0.0513]
[1646603313270,0.00078,39013.0,39011.0,0.21780161]
[1646603313470,0.00078,39013.0,39012.0,0.0513]
[1646603313675,0.00078,39013.0,39012.0,0.21557549]
[1646603313970,0.00078,39013.0,39012.0,0.31557549]
[1646603317909,0.00021106,39014.0,39013.0,1.164081]
[1646603318104,0.00119053,39029.0,39028.0,0.15361859]
[1646603318306,0.00119053,39029.0,39027.0,0.128157]
[1646603318505,0.00119053,39029.0,39027.0,0.179457]
[1646603318704,0.00119053,39029.0,39028.0,0.16829644]
[1646603319404,0.00119053,39029.0,39028.0,0.33030492]
[1646603319605,0.00119053,39029.0,39028.0,0.39438392]
[1646603320865,0.00119053,39029.0,39028.0,0.49438392]
[1646603321064,0.00119053,39029.0,39028.0,0.33237544]
[1646603321866,0.00119053,39029.0,39028.0,0.115379]
[1646603322067,0.00119053,39029.0,39028.0,0.0513]
[1646603322368,0.00119053,39029.0,39025.0,0.064094]
[1646603322869,0.00119053,39029.0,39022.0,0.012254]
[1646603322870,0.16845973,39028.0,39022.0,0.012254]
[1646603323074,0.15,39026.0,39022.0,0.012254]
[1646603323268,0.3,39025.0,39022.0,0.010254]
[1646603323469,0.16807867,39024.0,39022.0,0.010254]
[1646603323669,0.3,39023.0,39022.0,0.010254]
[1646603323869,0.3,39023.0,39014.0,0.23048539]
[1646603324321,0.21307867,39024.0,39014.0,0.23048539]
[1646603324521,0.3,39023.0,39013.0,0.1]
[1646603324723,0.15,39022.0,39002.0,0.0513]
[1646603324922,0.15,39022.0,39000.0,0.4865]
[1646603324923,0.15,39020.0,39000.0,0.550616]
[1646603325121,0.15,39018.0,39000.0,0.4865]
[1646603325320,0.3,39017.0,39000.0,0.4865]
[1646603325635,0.25354944,39016.0,39011.0,0.20866763]
[1646603325820,0.06412,39016.0,39011.0,0.20866763]
[1646603326420,0.06431902,39016.0,39011.0,0.20866763]
[1646603326824,0.00019902,39016.0,39011.0,0.20866763]
[1646603327219,0.264115,39018.0,39011.0,0.20866763]
[1646603327420,0.00019915,39016.0,39008.0,0.128222]
[1646603328058,0.00019915,39016.0,39007.0,0.001]
[1646603328258,0.16254792,39016.0,39007.0,0.20834043]
[1646603328457,0.16234877,39016.0,39010.0,0.16181912]
[1646603328660,0.05019539,39016.0,39010.0,0.16181912]
[1646603328860,0.00019539,39016.0,39010.0,0.16181912]
[1646603329459,0.06431139,39016.0,39010.0,0.16181912]
[1646603329660,0.07494289,39016.0,39010.0,0.16181912]
[1646603329860,0.12513829,39016.0,39010.0,0.16181912]
[1646603330760,0.114116,39016.0,39010.0,0.16181912]
[1646603331060,0.05019551,39016.0,39010.0,0.16181912]
[1646603331264,0.00019551,39016.0,39011.0,0.3]
[1646603331463,0.00019551,39016.0,39012.0,0.0513]
[1646603331712,0.00019551,39016.0,39013.0,0.3]
[1646603331915,0.19920485,39029.0,39014.0,0.21479765]
[1646603332119,0.18639485,39029.0,39017.0,0.01399895]
[1646603332312,0.18639485,39029.0,39018.0,0.0513]
[1646603332513,0.18639485,39029.0,39021.0,0.15]
[1646603332713,0.18639485,39029.0,39022.0,0.3513]
[1646603332911,0.00119053,39029.0,39023.0,0.17903154]
[1646603333111,0.00119053,39029.0,39026.0,0.064073]
[1646603333309,0.00119053,39029.0,39027.0,0.3513]
[1646603333510,0.00119053,39029.0,39028.0,0.47983224]
[1646603333709,0.00119053,39029.0,39028.0,0.62605224]
[1646603333911,0.00119053,39029.0,39028.0,0.72605224]
[1646603334618,0.00018927,39030.0,39029.0,0.85]
[1646603334810,0.00018927,39030.0,39029.0,0.515377]
[1646603335211,0.00018927,39030.0,39029.0,0.71727466]
[1646603335682,0.064078,39039.0,39029.0,0.78135266]
[1646603335880,0.064078,39039.0,39032.0,0.27721806]
[1646603336481,0.064078,39039.0,39036.0,0.15576783]
[1646603336681,0.064078,39039.0,39032.0,0.27721806]
[1646603336682,0.05,39033.0,39032.0,0.27721806]
[1646603336883,0.05,39033.0,39032.0,0.37721806]
[1646603337190,0.05,39033.0,39027.0,0.06564472]
[1646603337385,0.05,39033.0,39027.0,0.001569]
[1646603337585,0.04,39033.0,39026.0,0.1]
[1646603337988,0.04,39033.0,39024.0,0.128165]
[1646603338190,0.0640967,39032.0,39023.0,0.005]
[1646603338386,0.1283888,39031.0,39023.0,0.005]
[1646603338788,0.1283888,39031.0,39023.0,0.16123805]
[1646603339205,0.178199,39031.0,39023.0,0.005]
[1646603339410,0.00018962,39029.0,39021.0,0.20143448]
[1646603339605,0.00018962,39029.0,39028.0,0.15836335]
[1646603340207,0.00018962,39029.0,39028.0,0.3698847]
[1646603340408,0.05,39033.0,39028.0,0.3698847]
[1646603340807,0.00018961,39030.0,39028.0,0.3698847]
[1646603341308,0.00018961,39030.0,39029.0,0.3]
[1646603341509,0.00018961,39030.0,39029.0,0.428143]
[1646603341807,0.00018962,39031.0,39029.0,0.528143]
[1646603342006,0.00018962,39031.0,39030.0,0.3]
[1646603342209,0.00018962,39031.0,39030.0,0.4]
[1646603342608,0.01124043,39042.0,39033.0,0.128133]
[1646603342809,0.01124043,39042.0,39034.0,0.3]
[1646603343057,0.01124043,39042.0,39034.0,0.0513]
[1646603343459,0.01124043,39042.0,39035.0,0.19952786]
[1646603343658,0.01124043,39042.0,39041.0,0.21140152]
[1646603345661,0.01124043,39042.0,39037.0,0.064069]
[1646603345859,0.01124043,39042.0,39033.0,0.128133]
[1646603346059,0.01124043,39042.0,39033.0,0.228133]
[1646603346258,0.01124043,39042.0,39033.0,0.128133]
[1646603346821,0.16353732,39039.0,39033.0,0.128133]
[1646603347022,0.3640852,39038.0,39026.0,0.115387]
[1646603347222,0.3,39038.0,39022.0,0.01281]
[1646603347424,0.15,39035.0,39022.0,0.01281]
[1646603347629,0.15,39035.0,39016.0,0.4934]
[1646603347630,0.064097,39030.0,39016.0,0.4934]
[1646603347823,0.064097,39030.0,39021.0,0.19120864]
[1646603348023,0.064097,39030.0,39023.0,0.19440622]
[1646603349424,0.07688137,39030.0,39023.0,0.19440622]
[1646603349623,0.07688137,39030.0,39020.0,0.064096]
[1646603349829,0.064105,39026.0,39019.0,0.002]
[1646603350026,0.51410747,39025.0,39020.0,0.001]
[1646603350229,0.12823,39024.0,39020.0,0.001]
[1646603350461,0.15,39022.0,39020.0,0.001]
[1646603350660,0.35,39021.0,39020.0,0.001]
[1646603351262,0.35,39021.0,39015.0,0.21406085]
[1646603351664,0.05,39021.0,39015.0,0.21406085]
[1646603352467,0.114109,39021.0,39015.0,0.21406085]
[1646603352663,0.064109,39021.0,39015.0,0.21406085]
[1646603352868,0.114109,39021.0,39015.0,0.21406085]
[1646603353167,0.064109,39021.0,39015.0,0.21406085]
[1646603353364,0.114109,39021.0,39015.0,0.21406085]
[1646603353564,0.064109,39021.0,39015.0,0.21406085]
[1646603353765,0.114109,39021.0,39015.0,0.21406085]
[1646603354609,0.064109,39021.0,39015.0,0.21406085]
[1646603354813,0.114109,39021.0,39015.0,0.21406085]
[1646603355609,0.064109,39021.0,39015.0,0.21406085]
[1646603355810,0.114109,39021.0,39015.0,0.21406085]
[1646603357413,0.414109,39021.0,39015.0,0.21406085]
[1646603358256,0.59434818,39021.0,39015.0,0.21406085]
[1646603358959,0.414109,39021.0,39015.0,0.21406085]
[1646603359259,0.114109,39021.0,39015.0,0.21406085]
[1646603359658,0.05,39021.0,39015.0,0.21406085]
[1646603359858,0.01052672,39022.0,39015.0,0.21406085]
[1646603360664,0.69993453,39025.0,39015.0,0.21406085]
[1646603360860,0.064105,39024.0,39021.0,0.17758074]
[1646603361059,0.25163353,39019.0,39018.0,0.21775668]
[1646603361259,0.30163353,39019.0,39018.0,0.21775668]
[1646603362806,0.30163353,39019.0,39014.0,0.001]
[1646603363210,0.30163353,39019.0,39011.0,0.192315]
[1646603363407,0.30163353,39019.0,39013.0,0.16087369]
[1646603363611,0.30163353,39019.0,39011.0,0.192315]
[1646603363807,0.30163353,39019.0,39016.0,0.16712881]
[1646603368858,0.30163353,39019.0,39018.0,0.18400661]
[1646603369321,0.66898646,39029.0,39018.0,0.18400661]
[1646603369322,0.20982837,39033.0,39019.0,1.1]
[1646603369523,0.00020381,39033.0,39020.0,0.3513]
[1646603369720,0.00020381,39033.0,39020.0,0.4513]
[1646603369920,0.00020381,39033.0,39031.0,0.16469301]
[1646603370221,0.00020381,39033.0,39032.0,0.3]
[1646603370418,0.20620319,39041.0,39031.0,0.16469301]
[1646603370419,0.41603156,39041.0,39031.0,0.16469301]
[1646603370620,0.00010891,39034.0,39032.0,0.3]
[1646603370819,0.00010891,39034.0,39031.0,0.16469301]
[1646603371023,0.00010891,39034.0,39033.0,0.20574545]
[1646603371619,0.20982837,39040.0,39033.0,0.20574545]
[1646603371821,0.00020402,39035.0,39033.0,0.20574545]
[1646603372961,0.25982837,39040.0,39031.0,0.07337312]
[1646603373162,0.00020402,39036.0,39031.0,0.07337312]
[1646603373864,0.00020402,39036.0,39031.0,0.23957203]
[1646603374062,0.25982837,39040.0,39031.0,0.23957203]
[1646603374367,0.00020402,39035.0,39031.0,0.23957203]
[1646603375267,0.25982837,39039.0,39031.0,0.30364703]
[1646603375467,0.25982837,39039.0,39033.0,0.064075]
[1646603375468,0.00020401,39035.0,39033.0,0.064075]
[1646603376468,0.20977746,39040.0,39033.0,0.064075]
[1646603376712,0.22856368,39035.0,39033.0,0.064075]
[1646603376915,0.22856368,39035.0,39031.0,0.07337312]
[1646603377113,0.22789476,39035.0,39031.0,0.07337312]
[1646603377714,0.22789476,39035.0,39023.0,0.128166]
[1646603377715,0.3,39034.0,39023.0,0.128166]
[1646603377917,0.3,39034.0,39022.0,0.128176]
[1646603377918,0.0640969,39032.0,39022.0,0.128176]
[1646603378115,0.15425028,39028.0,39027.0,0.002]
[1646603378814,0.34770014,39028.0,39027.0,0.002]
[1646603379217,0.24344986,39028.0,39027.0,0.002]
[1646603379421,0.24344986,39028.0,39024.0,0.06409]
[1646603380218,0.21001289,39027.0,39024.0,0.06409]
[1646603380467,0.24344986,39028.0,39024.0,0.06409]
[1646603381869,0.24344986,39028.0,39022.0,0.064095]
[1646603382069,0.24344986,39028.0,39023.0,0.001]
[1646603383069,0.17612499,39026.0,39023.0,0.001]
[1646603383273,0.17612499,39026.0,39015.0,0.4476]
[1646603383274,0.3,39025.0,39015.0,0.4476]
[1646603383472,0.064104,39024.0,39015.0,0.4476]
[1646603383671,0.3,39023.0,39010.0,0.7473]
[1646603383876,0.35,39023.0,39008.0,0.12820084]
[1646603384207,0.37185094,39018.0,39011.0,0.2082028]
[1646603384407,0.42185094,39018.0,39011.0,0.002]
[1646603384607,0.42185094,39018.0,39014.0,0.128201]
[1646603385407,0.2182783,39018.0,39014.0,0.128201]
[1646603387607,0.2182783,39018.0,39015.0,0.0016661]
[1646603389363,0.045,39018.0,39015.0,0.0016661]
[1646603389765,0.05,39021.0,39016.0,0.064103]
[1646603389964,0.364104,39024.0,39016.0,0.064103]
[1646603390166,0.05,39023.0,39016.0,0.064103]
[1646603390363,0.414104,39024.0,39019.0,0.16878464]
[1646603390765,0.114104,39024.0,39019.0,0.16878464]
[1646603390965,0.05,39024.0,39019.0,0.23288264]
[1646603391164,0.35,39026.0,39019.0,0.23288264]
[1646603391814,0.74468169,39026.0,39019.0,0.23288264]
[1646603392211,0.55977746,39026.0,39019.0,0.23288264]
[1646603392611,0.35,39026.0,39019.0,0.23288264]
[1646603394014,0.4141,39026.0,39019.0,0.23288264]
[1646603394419,0.1141,39026.0,39019.0,0.23288264]
[1646603394816,0.00210084,39020.0,39019.0,0.23288264]
[1646603395116,0.00210084,39020.0,39019.0,0.42808824]
[1646603395557,0.00210084,39020.0,39019.0,0.064098]
[1646603395759,0.00210084,39020.0,39018.0,0.001]
[1646603395958,0.00210084,39020.0,39017.0,0.064102]
[1646603396558,0.00210084,39020.0,39018.0,0.21037227]
[1646603401316,0.00210084,39020.0,39017.0,0.064102]
[1646603402316,0.00210084,39020.0,39018.0,0.19515154]
[1646603402518,0.00210084,39020.0,39017.0,0.064102]
[1646603402964,0.00210084,39020.0,39019.0,0.128167]
[1646603403166,0.00210084,39020.0,39019.0,0.479467]
[1646603403360,0.00210084,39020.0,39019.0,0.50510145]
[1646603403562,0.00210084,39020.0,39019.0,0.79984275]
[1646603404364,0.00210084,39020.0,39019.0,0.7742083]
[1646603404562,0.00210084,39020.0,39019.0,0.88699989]
[1646603405165,0.20977746,39036.0,39020.0,1.1]
[1646603405365,0.16275904,39036.0,39029.0,0.064078]
[1646603405564,0.00018978,39033.0,39030.0,0.3]
[1646603405764,0.00018978,39033.0,39031.0,0.17422129]
[1646603406365,0.21275904,39036.0,39031.0,0.17422129]
[1646603406565,0.21275904,39036.0,39028.0,0.428156]
[1646603406805,0.00018981,39034.0,39028.0,0.41879972]
[1646603407009,0.20794885,39036.0,39028.0,0.48287972]
[1646603407206,0.20794885,39036.0,39030.0,0.06408]
[1646603408807,0.20794885,39036.0,39030.0,0.25221587]
[1646603409207,0.20794885,39036.0,39029.0,0.064081]
[1646603409406,0.20794885,39036.0,39028.0,0.3]
[1646603409606,0.064085,39035.0,39027.0,0.128157]
[1646603410472,0.064085,39035.0,39029.0,0.064082]
[1646603410670,0.20805757,39036.0,39029.0,0.064082]
[1646603411269,0.20794885,39036.0,39029.0,0.17053486]
[1646603411471,0.20816809,39036.0,39029.0,0.17053486]
[1646603411670,0.064086,39035.0,39029.0,0.17053486]
[1646603412875,0.39176091,39036.0,39030.0,0.064081]
[1646603413073,0.39176091,39036.0,39029.0,0.17053486]
[1646603413074,0.20816809,39036.0,39029.0,0.17053486]
[1646603413474,0.20816809,39036.0,39027.0,0.128157]
[1646603413674,0.20794885,39036.0,39027.0,0.128157]
[1646603413876,0.20816809,39036.0,39027.0,0.128157]
[1646603414078,0.20825964,39030.0,39024.0,0.131168]
[1646603414314,0.3,39029.0,39024.0,0.003]
[1646603414518,0.19374781,39026.0,39022.0,0.003]
[1646603415113,0.1648341,39023.0,39022.0,0.003]
[1646603415417,0.1648341,39023.0,39017.0,0.4476]
[1646603415614,0.1648341,39023.0,39018.0,0.064101]
[1646603416012,0.1648341,39023.0,39017.0,0.61288826]
[1646603416615,0.1648341,39023.0,39017.0,0.511701]
[1646603416815,0.3,39022.0,39017.0,0.064101]
[1646603417814,0.05,39020.0,39016.0,0.064103]
[1646603418259,0.05,39021.0,39016.0,0.064103]
[1646603418660,0.1849291,39022.0,39016.0,0.064103]
[1646603418860,0.2148341,39023.0,39016.0,0.064103]
[1646603419560,0.3,39022.0,39016.0,0.064103]
[1646603419761,0.2148341,39023.0,39016.0,0.064103]
[1646603419960,0.15883524,39022.0,39016.0,0.064103]
[1646603420159,0.45883524,39022.0,39016.0,0.064103]
[1646603420758,0.15883524,39022.0,39016.0,0.064103]
[1646603420960,0.45883524,39022.0,39016.0,0.064103]
[1646603421361,0.3,39022.0,39016.0,0.064103]
[1646603422413,0.3,39022.0,39016.0,0.24267801]
[1646603423011,0.05,39023.0,39018.0,0.064099]
[1646603423218,0.20977746,39027.0,39017.0,0.21698327]
[1646603423413,0.20977746,39028.0,39018.0,0.3]
[1646603424012,0.20579363,39027.0,39021.0,0.064095]
[1646603424411,0.20579363,39027.0,39017.0,0.28308027]
[1646603424611,0.25579363,39027.0,39017.0,0.28308027]
[1646603425213,0.0641,39026.0,39019.0,0.16253999]
[1646603425463,0.0641,39026.0,39018.0,0.064099]
[1646603426765,0.0641,39026.0,39019.0,0.1638209]
[1646603427065,0.0641,39026.0,39018.0,0.064099]
[1646603428070,0.0641,39026.0,39019.0,0.1707712]
[1646603429066,0.0641,39026.0,39018.0,0.064099]
[1646603429312,0.0641,39026.0,39016.0,0.064103]
[1646603430112,0.0641,39026.0,39016.0,0.22189513]
[1646603430314,0.15735451,39018.0,39015.0,0.00248446]
[1646603430516,0.064107,39021.0,39015.0,0.0016661]
[1646603430915,0.20977746,39026.0,39015.0,0.0016661]
[1646603431315,0.15781837,39022.0,39016.0,0.15944109]
[1646603431515,0.27388328,39026.0,39022.0,8.537e-05]
[1646603431816,0.23858839,39025.0,39022.0,8.537e-05]
[1646603432016,0.064104,39024.0,39022.0,8.537e-05]
[1646603434262,0.384299,39023.0,39022.0,8.537e-05]
[1646603434461,0.59722811,39023.0,39022.0,8.537e-05]
[1646603434659,0.90944993,39023.0,39022.0,8.537e-05]
[1646603434860,0.52515093,39023.0,39022.0,8.537e-05]
[1646603435060,0.26292911,39023.0,39022.0,8.537e-05]
[1646603435560,0.36292911,39023.0,39022.0,8.537e-05]
[1646603435758,0.68879529,39023.0,39022.0,8.537e-05]
[1646603435958,1.07309429,39023.0,39022.0,8.537e-05]
[1646603436161,1.27695253,39023.0,39022.0,8.537e-05]
[1646603436364,1.26575253,39023.0,39022.0,8.537e-05]
[1646603436561,0.064124,39020.0,39015.0,0.0016661]
[1646603436815,0.384299,39017.0,39015.0,0.00248447]
[1646603437020,0.384299,39017.0,39001.0,0.001]
[1646603437021,1.25,39016.0,39001.0,0.001]
[1646603437217,0.2,39014.0,39001.0,0.001]
[1646603437417,0.21001424,39013.0,39001.0,0.001]
[1646603437617,0.12828313,39004.0,39001.0,0.001]
[1646603437818,0.064142,39004.0,39001.0,0.001]
[1646603438012,0.19989193,39003.0,39001.0,0.001]
[1646603438214,0.064142,39004.0,39001.0,0.001]
[1646603438815,0.18513511,39003.0,39001.0,0.001]
[1646603439216,0.39170744,39003.0,39001.0,0.001]
[1646603439415,0.48513511,39003.0,39001.0,0.001]
[1646603439617,0.3,39002.0,39001.0,0.001]
[1646603439815,0.37681,39002.0,39001.0,0.001]
[1646603440019,0.77207427,39002.0,39001.0,0.001]
[1646603440319,0.38777527,39002.0,39001.0,0.001]
[1646603441366,0.38777527,39002.0,39000.0,0.00126818]
[1646603441367,0.20119048,38996.0,38990.0,0.19118544]
[1646603441572,0.20119048,38996.0,38994.0,0.00087758]
[1646603441573,0.3,38995.0,38994.0,0.00087758]
[1646603441768,0.20119048,38996.0,38994.0,0.00087758]
[1646603441769,0.25119048,38996.0,38994.0,0.00087758]
[1646603442571,0.43957267,38996.0,38993.0,0.00021938]
[1646603442769,0.50372817,38996.0,38993.0,0.00021938]
[1646603443569,0.064155,38994.0,38990.0,0.18580929]
[1646603443774,0.21391,39002.0,38993.0,0.00021938]
[1646603443775,0.1371,39002.0,38993.0,0.00021938]
[1646603443972,0.3112,39006.0,38993.0,0.00021938]
[1646603444220,0.3,39006.0,38993.0,0.00021938]
[1646603444418,0.0513,39007.0,38993.0,0.00021938]
[1646603444617,0.0513,39007.0,38997.0,0.2126309]
[1646603444618,0.20825358,39004.0,38997.0,0.2126309]
[1646603445016,0.20825358,39004.0,38998.0,0.00021937]
[1646603445216,0.27239556,39004.0,38998.0,0.00021937]
[1646603445615,0.32239556,39004.0,38998.0,0.00021937]
[1646603445915,0.38653956,39004.0,38998.0,0.00021937]
[1646603446117,0.1587401,39003.0,38995.0,0.16181502]
[1646603446321,0.1587401,39003.0,38999.0,0.00021108]
[1646603446619,0.32239556,39004.0,38999.0,0.00021108]
[1646603447320,0.064139,39002.0,38994.0,0.002]
[1646603447520,0.064139,39002.0,39000.0,0.00021108]
[1646603447960,0.114139,39002.0,39000.0,0.00021108]
[1646603448362,0.114139,39002.0,38997.0,0.001]
[1646603448765,0.064133,39005.0,38999.0,0.00021108]
[1646603448966,0.31813685,39012.0,38999.0,0.30021108]
[1646603448967,0.1371,39012.0,38999.0,0.30021108]
[1646603449164,0.1371,39012.0,38999.0,0.00021108]
[1646603449668,0.17814101,39010.0,38999.0,0.3]
[1646603449865,0.17814101,39010.0,39004.0,0.00020421]
[1646603449866,0.21260382,39009.0,39004.0,0.00020421]
[1646603450067,0.064129,39009.0,39004.0,0.00013761]
[1646603450264,0.114129,39009.0,39004.0,0.00013761]
[1646603450867,0.114129,39009.0,39001.0,0.128242]
[1646603451468,0.29327079,39009.0,39002.0,0.19957847]
[1646603451709,0.114129,39009.0,39002.0,0.19957847]
[1646603451916,0.114129,39009.0,39002.0,0.71779845]
[1646603452112,0.114129,39009.0,39003.0,0.064125]
[1646603452313,0.114125,39012.0,39003.0,0.064125]
[1646603452513,0.05,39009.0,39003.0,0.064125]
[1646603452712,0.114125,39012.0,39003.0,0.064125]
[1646603453115,0.19071201,39009.0,39003.0,0.064125]
[1646603453313,0.24071201,39009.0,39003.0,0.064125]
[1646603453513,0.24071201,39009.0,39006.0,0.00021934]
[1646603454518,0.24071201,39009.0,39003.0,0.065125]
[1646603454715,0.24071201,39009.0,39006.0,0.00021934]
[1646603454915,0.30484001,39009.0,39006.0,0.00021934]
[1646603455761,0.30484001,39009.0,39002.0,0.49957847]
[1646603455964,0.30484001,39009.0,39006.0,0.00021934]
[1646603456164,0.67751934,39008.0,39006.0,0.00021934]
[1646603456363,0.31631396,39009.0,39006.0,0.00021934]
[1646603456761,0.06443649,39005.0,39000.0,0.00087751]
[1646603456962,0.18254953,38999.0,38993.0,0.21018642]
[1646603457166,0.18254953,38999.0,38991.0,0.128276]
[1646603457560,0.18254953,38999.0,38991.0,0.428276]
[1646603457863,0.128291,39002.0,38991.0,0.428276]
[1646603458062,0.064146,38998.0,38991.0,0.428276]
[1646603458261,0.064146,38998.0,38994.0,0.18199026]
[1646603459414,0.064146,38998.0,38994.0,0.18209215]
[1646603460216,0.064146,38998.0,38994.0,0.18202555]
[1646603460416,0.064146,38998.0,38991.0,0.128276]
[1646603460616,0.064146,38998.0,38994.0,0.00021105]
[1646603461816,0.064146,38998.0,38994.0,0.00020937]
[1646603462819,0.00041874,38992.0,38991.0,0.128276]
[1646603463460,0.00041874,38992.0,38991.0,0.31275017]
[1646603463661,0.00041874,38992.0,38991.0,0.61275017]
[1646603464069,0.01149349,39005.0,38991.0,0.7449307]
[1646603464070,0.00029349,39005.0,38991.0,0.7449307]
[1646603464270,0.00029349,39005.0,38993.0,0.07487904]
[1646603464464,0.00029349,39005.0,38999.0,0.01670327]
[1646603464663,0.00029349,39005.0,39000.0,0.0513]
[1646603464867,0.00029349,39005.0,39001.0,0.36411]
[1646603465068,0.00029349,39005.0,39002.0,0.44458126]
[1646603465266,0.00029349,39005.0,39002.0,0.54458126]
[1646603466264,0.00029349,39005.0,39003.0,0.3]
[1646603466465,0.00029349,39005.0,39004.0,0.128232]
[1646603466718,0.00029349,39005.0,39004.0,0.528232]
[1646603466919,0.00029349,39005.0,39004.0,0.579532]
[1646603467320,0.00029349,39005.0,39004.0,0.60518289]
[1646603470023,0.00029349,39005.0,39004.0,0.6051796]
[1646603470479,0.00029349,39005.0,39004.0,0.579532]
[1646603470883,0.00029349,39005.0,39004.0,0.59319838]
[1646603471085,0.00020454,39012.0,39005.0,0.064093]
[1646603471285,2e-07,39022.0,39009.0,0.22450703]
[1646603471482,2e-07,39022.0,39010.0,0.3513]
[1646603471683,2e-07,39022.0,39011.0,0.484558]
[1646603471684,0.00020454,39012.0,39011.0,0.484558]
[1646603471883,0.00020454,39012.0,39011.0,0.94869298]
[1646603472082,0.00020454,39012.0,39011.0,1.23222651]
[1646603472483,2e-07,39022.0,39011.0,1.14503584]
[1646603472683,2e-07,39022.0,39015.0,0.064098]
[1646603472886,2e-07,39022.0,39016.0,0.479496]
[1646603474082,0.00020449,39021.0,39016.0,0.479496]
[1646603474319,0.00020449,39021.0,39020.0,0.064098]
[1646603474921,2e-07,39022.0,39020.0,0.064098]
[1646603475220,0.00020469,39022.0,39020.0,0.064098]
[1646603476024,2e-07,39022.0,39021.0,0.19022403]
[1646603476226,2e-07,39022.0,39020.0,0.064098]
[1646603481720,2e-07,39022.0,39020.0,0.25204049]